[Event "Betsys MČR v online bleskovém šachu 2021"]
[Site "Chess.com"]
[Date "2021.04.17"]
[Round "2"]
[White "Chessillusion213"]
[Black "Jeff_CZE"]
[Result "1-0"]
[WhiteElo "2173"]
[BlackElo "1856"]
[TimeControl "180+1"]
[EndTime "9:16:22 PDT"]
[Termination "Uživatel Chessillusion213 zvítězil po vzdání soupeře"]

1. d4 {[%clk 0:02:59.6]} 1... e6 {[%clk 0:03:00.1]} 2. c4 {[%clk 0:02:59.4]}
2... d5 {[%clk 0:03:01]} 3. Nf3 {[%clk 0:02:59.3]} 3... Nf6 {[%clk 0:03:01.1]}
4. g3 {[%clk 0:02:59.5]} 4... Be7 {[%clk 0:03:01.7]} 5. Bg2 {[%clk 0:02:59.6]}
5... O-O {[%clk 0:03:02.3]} 6. O-O {[%clk 0:02:59.4]} 6... dxc4 {[%clk 0:03:02]}
7. Ne5 {[%clk 0:02:56.4]} 7... Nc6 {[%clk 0:03:01.1]} 8. Nxc6 {[%clk 0:02:53.6]}
8... bxc6 {[%clk 0:03:01.7]} 9. e3 {[%clk 0:02:53.9]} 9... Bb7 {[%clk
0:02:53.3]} 10. Nd2 {[%clk 0:02:50.7]} 10... Rb8 {[%clk 0:02:45.1]} 11. Nxc4
{[%clk 0:02:40.6]} 11... c5 {[%clk 0:02:40.5]} 12. Ne5 {[%clk 0:02:23.5]} 12...
Bxg2 {[%clk 0:02:31.6]} 13. Kxg2 {[%clk 0:02:22.9]} 13... Qd5+ {[%clk 0:02:29]}
14. Qf3 {[%clk 0:02:15.7]} 14... cxd4 {[%clk 0:02:10.1]} 15. Qxd5 {[%clk
0:02:03.9]} 15... exd5 {[%clk 0:02:11]} 16. exd4 {[%clk 0:02:02.1]} 16... Bd6
{[%clk 0:01:47.5]} 17. b3 {[%clk 0:01:55]} 17... Rfe8 {[%clk 0:01:43.3]} 18. Bb2
{[%clk 0:01:44.2]} 18... Ne4 {[%clk 0:01:22.3]} 19. Rac1 {[%clk 0:01:32.3]}
19... c5 {[%clk 0:01:10.4]} 20. Nd7 {[%clk 0:01:09.5]} 20... Rbc8 {[%clk
0:00:53.8]} 21. Nxc5 {[%clk 0:01:03.7]} 21... Nxc5 {[%clk 0:00:46.2]} 22. dxc5
{[%clk 0:01:03.8]} 22... Bxc5 {[%clk 0:00:33.7]} 23. Rfd1 {[%clk 0:01:01.4]}
23... Re2 {[%clk 0:00:22.6]} 24. Bd4 {[%clk 0:01:00.9]} 1-0

[Event "Betsys MČR v online bleskovém šachu 2021"]
[Site "Chess.com"]
[Date "2021.04.17"]
[Round "2"]
[White "121pepa"]
[Black "milanpetras"]
[Result "0-1"]
[WhiteElo "1415"]
[BlackElo "1831"]
[TimeControl "180+1"]
[EndTime "9:16:22 PDT"]
[Termination "Uživatel milanpetras zvítězil po vzdání soupeře"]

1. d4 {[%clk 0:03:00.9]} 1... d5 {[%clk 0:02:58.3]} 2. c4 {[%clk 0:02:57]} 2...
e6 {[%clk 0:02:56.4]} 3. Nc3 {[%clk 0:02:55.6]} 3... Nf6 {[%clk 0:02:54.9]} 4.
Bg5 {[%clk 0:02:53.7]} 4... Be7 {[%clk 0:02:54.7]} 5. Nf3 {[%clk 0:02:53]} 5...
c5 {[%clk 0:02:53]} 6. e3 {[%clk 0:02:50.7]} 6... Nc6 {[%clk 0:02:51.4]} 7. Be2
{[%clk 0:02:44.9]} 7... cxd4 {[%clk 0:02:49.2]} 8. Nxd4 {[%clk 0:02:42.6]} 8...
Nxd4 {[%clk 0:02:40.5]} 9. Qxd4 {[%clk 0:02:40.7]} 9... dxc4 {[%clk 0:02:33]}
10. Qxd8+ {[%clk 0:02:38.6]} 10... Bxd8 {[%clk 0:02:33.9]} 11. Bxc4 {[%clk
0:02:37.3]} 11... O-O {[%clk 0:02:30.6]} 12. O-O-O {[%clk 0:02:32.4]} 12... a6
{[%clk 0:02:26.4]} 13. h4 {[%clk 0:02:30.2]} 13... b5 {[%clk 0:02:23.8]} 14. Bb3
{[%clk 0:02:28.9]} 14... Bb7 {[%clk 0:02:23.4]} 15. Rhg1 {[%clk 0:02:25.1]}
15... h6 {[%clk 0:02:22.4]} 16. Bf4 {[%clk 0:02:23.1]} 16... Ba5 {[%clk
0:02:13.3]} 17. Be5 {[%clk 0:02:19.1]} 17... Rad8 {[%clk 0:02:08]} 18. Rxd8
{[%clk 0:02:13.3]} 18... Rxd8 {[%clk 0:02:08.9]} 19. Bxf6 {[%clk 0:02:13]} 19...
gxf6 {[%clk 0:02:07.5]} 20. Kc2 {[%clk 0:02:10.4]} 20... Kg7 {[%clk 0:02:00.9]}
21. g3 {[%clk 0:02:06]} 21... f5 {[%clk 0:01:53.8]} 22. Rd1 {[%clk 0:01:57.5]}
22... Rxd1 {[%clk 0:01:48.9]} 23. Kxd1 {[%clk 0:01:55.6]} 23... Kf6 {[%clk
0:01:48.1]} 24. Kd2 {[%clk 0:01:53.5]} 24... Bb6 {[%clk 0:01:32.2]} 25. a3
{[%clk 0:01:50.4]} 25... Bc6 {[%clk 0:01:30.7]} 26. Bc2 {[%clk 0:01:49.1]} 26...
Ke5 {[%clk 0:01:28]} 27. f4+ {[%clk 0:01:46.3]} 27... Kd6 {[%clk 0:01:25.6]} 28.
b4 {[%clk 0:01:43.5]} 28... Ke7 {[%clk 0:01:23.9]} 29. Ne2 {[%clk 0:01:40.2]}
29... Be4 {[%clk 0:01:16.6]} 30. Bxe4 {[%clk 0:01:38.4]} 30... fxe4 {[%clk
0:01:16.7]} 31. Nd4 {[%clk 0:01:37.3]} 31... Bxd4 {[%clk 0:01:16.3]} 32. exd4
{[%clk 0:01:36.4]} 32... f5 {[%clk 0:01:16.3]} 33. Ke3 {[%clk 0:01:35.1]} 33...
Kd6 {[%clk 0:01:16.1]} 34. h5 {[%clk 0:01:33.6]} 34... Kd5 {[%clk 0:01:15.6]}
35. Kd2 {[%clk 0:01:27.7]} 35... Kc4 {[%clk 0:01:14.3]} 36. Ke3 {[%clk
0:01:25.9]} 36... Kd5 {[%clk 0:01:13.8]} 37. Kd2 {[%clk 0:01:25.2]} 37... Kxd4
{[%clk 0:01:14.1]} 38. Ke2 {[%clk 0:01:22.6]} 38... Kc3 {[%clk 0:01:13.7]} 39.
Ke3 {[%clk 0:01:22.6]} 39... Kb3 {[%clk 0:01:13.7]} 40. g4 {[%clk 0:01:20.6]}
40... fxg4 {[%clk 0:01:11.3]} 41. Kxe4 {[%clk 0:01:21.3]} 41... Kxa3 {[%clk
0:01:08.2]} 42. Ke3 {[%clk 0:01:21.2]} 42... Kxb4 {[%clk 0:01:07.4]} 43. Kf2
{[%clk 0:01:21.2]} 43... a5 {[%clk 0:01:06.8]} 44. Kg3 {[%clk 0:01:21.2]} 44...
a4 {[%clk 0:01:07.7]} 45. Kxg4 {[%clk 0:01:21.1]} 45... a3 {[%clk 0:01:08.6]}
46. f5 {[%clk 0:01:20.9]} 46... a2 {[%clk 0:01:09.5]} 47. f6 {[%clk 0:01:19.2]}
47... a1=Q {[%clk 0:01:07.4]} 48. f7 {[%clk 0:01:19.2]} 48... Qf1 {[%clk
0:01:05.2]} 49. Kg3 {[%clk 0:01:17.6]} 49... Qxf7 {[%clk 0:01:04.3]} 50. Kg4
{[%clk 0:01:17.4]} 50... Qf5+ {[%clk 0:01:03.9]} 51. Kh4 {[%clk 0:01:16.2]}
51... Qg5+ {[%clk 0:01:04]} 52. Kh3 {[%clk 0:01:16.1]} 52... Kc3 {[%clk
0:01:04.2]} 53. Kh2 {[%clk 0:01:15.8]} 53... Kd2 {[%clk 0:01:04.3]} 54. Kh3
{[%clk 0:01:14.6]} 54... Ke2 {[%clk 0:01:05.2]} 0-1

[Event "Betsys MČR v online bleskovém šachu 2021"]
[Site "Chess.com"]
[Date "2021.04.17"]
[Round "2"]
[White "Tomasn2003"]
[Black "svobodan"]
[Result "0-1"]
[WhiteElo "1121"]
[BlackElo "1670"]
[TimeControl "180+1"]
[EndTime "9:16:22 PDT"]
[Termination "Uživatel svobodan zvítězil matem"]

1. b3 {[%clk 0:03:00.9]} 1... e5 {[%clk 0:02:58.4]} 2. Bb2 {[%clk 0:03:00.6]}
2... Nc6 {[%clk 0:02:58.4]} 3. e3 {[%clk 0:03:00.6]} 3... d5 {[%clk 0:02:58.3]}
4. Bb5 {[%clk 0:02:59.6]} 4... Bd6 {[%clk 0:02:56.5]} 5. Nf3 {[%clk 0:02:58.4]}
5... Qe7 {[%clk 0:02:54.5]} 6. Bxc6+ {[%clk 0:02:55.8]} 6... bxc6 {[%clk
0:02:53.6]} 7. O-O {[%clk 0:02:51.6]} 7... Bg4 {[%clk 0:02:50.9]} 8. h3 {[%clk
0:02:50.7]} 8... Bh5 {[%clk 0:02:50.6]} 9. d3 {[%clk 0:02:36.4]} 9... Nf6 {[%clk
0:02:43.8]} 10. Nbd2 {[%clk 0:02:32.3]} 10... O-O {[%clk 0:02:37.2]} 11. Re1
{[%clk 0:02:25.7]} 11... Rfe8 {[%clk 0:02:24.6]} 12. g4 {[%clk 0:02:25.1]} 12...
Bg6 {[%clk 0:02:21.9]} 13. Nh4 {[%clk 0:02:24.9]} 13... Nd7 {[%clk 0:02:18.9]}
14. Nxg6 {[%clk 0:02:24.6]} 14... fxg6 {[%clk 0:02:16.1]} 15. Nf3 {[%clk
0:02:17.4]} 15... e4 {[%clk 0:02:07.8]} 16. dxe4 {[%clk 0:02:16.7]} 16... dxe4
{[%clk 0:02:07.1]} 17. Nd4 {[%clk 0:01:58.3]} 17... Qh4 {[%clk 0:02:03.4]} 18.
Kg2 {[%clk 0:01:51.5]} 18... Rf8 {[%clk 0:01:58.7]} 19. Re2 {[%clk 0:01:34]}
19... c5 {[%clk 0:01:48.2]} 20. Ne6 {[%clk 0:01:28.8]} 20... Rf3 {[%clk
0:01:47]} 21. Qh1 {[%clk 0:01:23]} 21... Ne5 {[%clk 0:01:14.3]} 22. Bxe5 {[%clk
0:01:06.9]} 22... Bxe5 {[%clk 0:01:12.4]} 23. Rd1 {[%clk 0:01:06.7]} 23... Re8
{[%clk 0:01:08.8]} 24. Nxc5 {[%clk 0:01:03.6]} 24... Ref8 {[%clk 0:01:08.7]} 25.
Rdd2 {[%clk 0:00:20.6]} 25... Rg3+ {[%clk 0:01:01]} 26. Kf1 {[%clk 0:00:17.3]}
26... Rxh3 {[%clk 0:00:58.6]} 27. Qg2 {[%clk 0:00:16.4]} 27... Rh1+ {[%clk
0:00:57.8]} 28. Qxh1 {[%clk 0:00:15.9]} 28... Qxh1# {[%clk 0:00:57.8]} 0-1

[Event "Betsys MČR v online bleskovém šachu 2021"]
[Site "Chess.com"]
[Date "2021.04.17"]
[Round "2"]
[White "JanBaraCZE"]
[Black "Skalicky"]
[Result "1-0"]
[WhiteElo "1588"]
[BlackElo "791"]
[TimeControl "180+1"]
[EndTime "9:16:23 PDT"]
[Termination "Uživatel JanBaraCZE zvítězil na čas"]

1. d4 {[%clk 0:03:00.9]} 1... d5 {[%clk 0:02:58.5]} 2. c4 {[%clk 0:03:00.9]}
2... dxc4 {[%clk 0:02:57.7]} 3. e4 {[%clk 0:03:00.4]} 3... e5 {[%clk 0:02:56.9]}
4. Nf3 {[%clk 0:02:59.2]} 4... exd4 {[%clk 0:02:56.1]} 5. Qxd4 {[%clk
0:02:58.8]} 5... Qxd4 {[%clk 0:02:55.2]} 6. Nxd4 {[%clk 0:02:59.7]} 6... Nf6
{[%clk 0:02:54.7]} 7. Nc3 {[%clk 0:02:58.6]} 7... Nc6 {[%clk 0:02:35.9]} 8. Nxc6
{[%clk 0:02:55.3]} 8... bxc6 {[%clk 0:02:34.9]} 9. Bxc4 {[%clk 0:02:55]} 9...
Be7 {[%clk 0:02:25.3]} 10. Bf4 {[%clk 0:02:46.4]} 10... Bd8 {[%clk 0:01:54.1]}
11. O-O-O {[%clk 0:02:41.2]} 11... O-O {[%clk 0:01:52.6]} 12. h3 {[%clk
0:02:36.3]} 12... Be6 {[%clk 0:01:34.3]} 13. Bxe6 {[%clk 0:02:34.6]} 13... fxe6
{[%clk 0:01:33.8]} 14. g4 {[%clk 0:02:31.4]} 14... Rf7 {[%clk 0:01:17.7]} 15.
Na4 {[%clk 0:01:56.8]} 15... Rd7 {[%clk 0:01:03.8]} 16. Nc5 {[%clk 0:01:48.6]}
16... Rxd1+ {[%clk 0:00:54.2]} 17. Rxd1 {[%clk 0:01:49.5]} 17... Kf7 {[%clk
0:00:25.4]} 18. Nd7 {[%clk 0:01:36.7]} 18... Nxd7 {[%clk 0:00:24.3]} 19. Rxd7+
{[%clk 0:01:35.3]} 19... Kf8 {[%clk 0:00:18.6]} 20. Bxc7 {[%clk 0:01:34.4]}
20... Bxc7 {[%clk 0:00:16.7]} 21. Rxc7 {[%clk 0:01:35.3]} 21... Rd8 {[%clk
0:00:14.9]} 22. Rxc6 {[%clk 0:01:32.1]} 22... Rd4 {[%clk 0:00:10.2]} 23. Rxe6
{[%clk 0:01:31.1]} 23... Kf7 {[%clk 0:00:09.6]} 24. Re5 {[%clk 0:01:28.2]} 24...
Ra4 {[%clk 0:00:08.6]} 25. a3 {[%clk 0:01:26.3]} 25... Ra6 {[%clk 0:00:05.1]}
26. Rc5 {[%clk 0:01:24.3]} 26... Rf6 {[%clk 0:00:02.7]} 27. Rf5 {[%clk 0:01:23]}
27... Rxf5 {[%clk 0:00:02.5]} 28. exf5 {[%clk 0:01:23.9]} 28... Kf6 {[%clk
0:00:02.9]} 29. f4 {[%clk 0:01:22.1]} 29... g6 {[%clk 0:00:02.9]} 30. fxg6
{[%clk 0:01:21.2]} 30... hxg6 {[%clk 0:00:02.4]} 31. Kd2 {[%clk 0:01:20.4]} 1-0

[Event "Betsys MČR v online bleskovém šachu 2021"]
[Site "Chess.com"]
[Date "2021.04.17"]
[Round "2"]
[White "AdeeJa"]
[Black "JonasFadrny"]
[Result "1-0"]
[WhiteElo "1541"]
[BlackElo "756"]
[TimeControl "180+1"]
[EndTime "9:16:27 PDT"]
[Termination "Uživatel AdeeJa zvítězil matem"]

1. e4 {[%clk 0:03:00.9]} 1... e5 {[%clk 0:02:57.5]} 2. Nf3 {[%clk 0:03:00.8]}
2... Nc6 {[%clk 0:02:56.6]} 3. Bb5 {[%clk 0:03:00.6]} 3... d6 {[%clk 0:02:55.5]}
4. d4 {[%clk 0:02:59.5]} 4... a6 {[%clk 0:02:54.8]} 5. Ba4 {[%clk 0:02:57.4]}
5... b5 {[%clk 0:02:53.4]} 6. Bb3 {[%clk 0:02:52]} 6... Nf6 {[%clk 0:02:53.8]}
7. dxe5 {[%clk 0:02:25.2]} 7... Nxe5 {[%clk 0:02:51.8]} 8. Nxe5 {[%clk
0:02:20.1]} 8... dxe5 {[%clk 0:02:52.2]} 9. Bxf7+ {[%clk 0:02:18.9]} 9... Kxf7
{[%clk 0:02:51.4]} 10. Qxd8 {[%clk 0:02:17.1]} 10... Bb4+ {[%clk 0:02:44.9]} 11.
Qd2 {[%clk 0:02:15.8]} 11... Bxd2+ {[%clk 0:02:42.2]} 12. Nxd2 {[%clk
0:02:12.9]} 12... Nxe4 {[%clk 0:02:42.6]} 13. Nxe4 {[%clk 0:02:11]} 13... Bf5
{[%clk 0:02:41.9]} 14. Ng5+ {[%clk 0:02:07.4]} 14... Kf6 {[%clk 0:02:40.7]} 15.
O-O {[%clk 0:02:05.8]} 15... Bxc2 {[%clk 0:02:39.8]} 16. f4 {[%clk 0:01:59.6]}
16... exf4 {[%clk 0:02:31.4]} 17. Rxf4+ {[%clk 0:01:54.1]} 17... Kxg5 {[%clk
0:02:29]} 18. Rc4+ {[%clk 0:01:53.9]} 18... Kg6 {[%clk 0:02:27.3]} 19. Rxc2
{[%clk 0:01:54]} 19... Rhe8 {[%clk 0:02:24.9]} 20. Rf2 {[%clk 0:01:39.2]} 20...
Re1+ {[%clk 0:02:24.1]} 21. Rf1 {[%clk 0:01:38.3]} 21... Rxf1+ {[%clk
0:02:22.6]} 22. Kxf1 {[%clk 0:01:37.1]} 22... Rf8+ {[%clk 0:02:22.6]} 23. Ke2
{[%clk 0:01:36.6]} 23... Re8+ {[%clk 0:02:21]} 24. Be3 {[%clk 0:01:36.6]} 24...
Kf5 {[%clk 0:02:16.4]} 25. Rc1 {[%clk 0:01:34.7]} 25... Re7 {[%clk 0:02:13.6]}
26. Rc5+ {[%clk 0:01:30.7]} 26... Kf6 {[%clk 0:02:10.8]} 27. Kf3 {[%clk
0:01:27]} 27... Rf7 {[%clk 0:02:07.3]} 28. Bf4 {[%clk 0:01:21.7]} 28... Kg6
{[%clk 0:02:03.9]} 29. g4 {[%clk 0:01:17.4]} 29... h5 {[%clk 0:01:59.1]} 30.
Rxc7 {[%clk 0:01:11.5]} 30... Rxc7 {[%clk 0:01:58.1]} 31. Bxc7 {[%clk
0:01:10.3]} 31... hxg4+ {[%clk 0:01:57.7]} 32. Kxg4 {[%clk 0:01:10.1]} 32... Kf6
{[%clk 0:01:56.4]} 33. h4 {[%clk 0:01:08.4]} 33... g6 {[%clk 0:01:55.3]} 34.
Bd8+ {[%clk 0:01:04.9]} 34... Kg7 {[%clk 0:01:54.3]} 35. Kg5 {[%clk 0:01:04.6]}
35... Kf7 {[%clk 0:01:48.9]} 36. b4 {[%clk 0:00:59.6]} 36... Kg7 {[%clk
0:01:44]} 37. Bc7 {[%clk 0:00:56.9]} 37... Kf7 {[%clk 0:01:42.9]} 38. Be5 {[%clk
0:00:56.6]} 38... Ke6 {[%clk 0:01:39.3]} 39. Kxg6 {[%clk 0:00:56.7]} 39... Kxe5
{[%clk 0:01:39.4]} 40. h5 {[%clk 0:00:56.7]} 40... Ke6 {[%clk 0:01:39.7]} 41. h6
{[%clk 0:00:57.1]} 41... Kd5 {[%clk 0:01:37.7]} 42. h7 {[%clk 0:00:58]} 42...
Kc4 {[%clk 0:01:37.7]} 43. h8=Q {[%clk 0:00:56]} 43... Kxb4 {[%clk 0:01:38.1]}
44. Qg8 {[%clk 0:00:54.1]} 44... Ka5 {[%clk 0:01:36.3]} 45. Kf5 {[%clk
0:00:53.2]} 45... b4 {[%clk 0:01:35.6]} 46. Ke5 {[%clk 0:00:51.5]} 46... Kb5
{[%clk 0:01:34.3]} 47. Kd5 {[%clk 0:00:50.5]} 47... a5 {[%clk 0:01:34]} 48. Qe8+
{[%clk 0:00:49.6]} 48... Kb6 {[%clk 0:01:31.8]} 49. Qc6+ {[%clk 0:00:48.5]}
49... Ka7 {[%clk 0:01:30.9]} 50. Qb5 {[%clk 0:00:46.3]} 50... a4 {[%clk
0:01:25]} 51. Kc6 {[%clk 0:00:45]} 51... b3 {[%clk 0:01:21]} 52. Qb7# {[%clk
0:00:44.9]} 1-0

[Event "Betsys MČR v online bleskovém šachu 2021"]
[Site "Chess.com"]
[Date "2021.04.17"]
[Round "2"]
[White "pburak"]
[Black "Kijonker"]
[Result "1-0"]
[WhiteElo "1065"]
[BlackElo "1553"]
[TimeControl "180+1"]
[EndTime "9:16:30 PDT"]
[Termination "Uživatel pburak zvítězil po vzdání soupeře"]

1. e4 {[%clk 0:03:00.9]} 1... c5 {[%clk 0:02:59.2]} 2. Nf3 {[%clk 0:02:59.4]}
2... d6 {[%clk 0:02:58.3]} 3. d4 {[%clk 0:02:58.5]} 3... cxd4 {[%clk 0:02:58]}
4. Nxd4 {[%clk 0:02:57.9]} 4... Nf6 {[%clk 0:02:57.9]} 5. Nc3 {[%clk 0:02:56.7]}
5... g6 {[%clk 0:02:57.1]} 6. Bc4 {[%clk 0:02:53.2]} 6... Bg7 {[%clk 0:02:56.4]}
7. O-O {[%clk 0:02:51.8]} 7... O-O {[%clk 0:02:50.5]} 8. Bg5 {[%clk 0:02:39.2]}
8... Nc6 {[%clk 0:02:42.9]} 9. Nxc6 {[%clk 0:02:35.5]} 9... bxc6 {[%clk
0:02:42.8]} 10. Qd2 {[%clk 0:02:34.4]} 10... Rb8 {[%clk 0:02:28.5]} 11. Bb3
{[%clk 0:02:28.2]} 11... Ba6 {[%clk 0:02:23.7]} 12. Rfe1 {[%clk 0:02:23]} 12...
Nd7 {[%clk 0:01:57.2]} 13. Bh6 {[%clk 0:02:18.7]} 13... Bxh6 {[%clk 0:01:49.1]}
14. Qxh6 {[%clk 0:02:17.4]} 14... Ne5 {[%clk 0:01:47]} 15. h3 {[%clk 0:01:48.9]}
15... Qb6 {[%clk 0:01:40.1]} 16. Rad1 {[%clk 0:01:32.5]} 16... Bc4 {[%clk
0:01:25.8]} 17. Bxc4 {[%clk 0:01:07]} 17... Nxc4 {[%clk 0:01:24.6]} 18. e5
{[%clk 0:00:54.2]} 18... Nxe5 {[%clk 0:01:19.9]} 19. Re4 {[%clk 0:00:50.4]}
19... Nd7 {[%clk 0:01:09]} 20. Rh4 {[%clk 0:00:46.7]} 20... Nf6 {[%clk
0:01:06.2]} 21. Ne4 {[%clk 0:00:45.7]} 21... Rfc8 {[%clk 0:00:58.5]} 22. Nxf6+
{[%clk 0:00:41.1]} 22... exf6 {[%clk 0:00:57.8]} 23. Qxh7+ {[%clk 0:00:38.7]}
23... Kf8 {[%clk 0:00:57.8]} 24. Re1 {[%clk 0:00:35.1]} 1-0

[Event "Betsys MČR v online bleskovém šachu 2021"]
[Site "Chess.com"]
[Date "2021.04.17"]
[Round "2"]
[White "Tassa15"]
[Black "Bavorak15"]
[Result "0-1"]
[WhiteElo "847"]
[BlackElo "1588"]
[TimeControl "180+1"]
[EndTime "9:16:30 PDT"]
[Termination "Uživatel Bavorak15 zvítězil matem"]

1. d4 {[%clk 0:03:00.9]} 1... Nf6 {[%clk 0:02:58.9]} 2. Nf3 {[%clk 0:02:59.9]}
2... e6 {[%clk 0:02:58.1]} 3. Bf4 {[%clk 0:02:59.1]} 3... d5 {[%clk 0:02:51.1]}
4. e3 {[%clk 0:02:58.3]} 4... Bd6 {[%clk 0:02:49.5]} 5. Bxd6 {[%clk 0:02:57.1]}
5... Qxd6 {[%clk 0:02:50.4]} 6. c3 {[%clk 0:02:56.5]} 6... O-O {[%clk
0:02:50.3]} 7. Bd3 {[%clk 0:02:55.6]} 7... Nbd7 {[%clk 0:02:39.5]} 8. h3 {[%clk
0:02:55]} 8... e5 {[%clk 0:02:34.9]} 9. dxe5 {[%clk 0:02:52.8]} 9... Nxe5 {[%clk
0:02:35.8]} 10. Nxe5 {[%clk 0:02:50.4]} 10... Qxe5 {[%clk 0:02:36.7]} 11. Nd2
{[%clk 0:02:49.9]} 11... b6 {[%clk 0:02:28.8]} 12. Nf3 {[%clk 0:02:49]} 12...
Qe7 {[%clk 0:02:28.9]} 13. Qc2 {[%clk 0:02:45.9]} 13... g6 {[%clk 0:02:28.1]}
14. O-O {[%clk 0:02:44.1]} 14... Ne4 {[%clk 0:02:20.4]} 15. Rfe1 {[%clk
0:02:36.6]} 15... Bb7 {[%clk 0:02:13.8]} 16. Nd4 {[%clk 0:02:35.3]} 16... c5
{[%clk 0:02:07.4]} 17. Nf3 {[%clk 0:02:24.7]} 17... Qc7 {[%clk 0:01:38.5]} 18.
Rad1 {[%clk 0:02:12.2]} 18... Rad8 {[%clk 0:01:37.2]} 19. Bxe4 {[%clk
0:02:11.4]} 19... dxe4 {[%clk 0:01:37.2]} 20. Rxd8 {[%clk 0:01:57.1]} 20... Rxd8
{[%clk 0:01:38.1]} 21. Nd2 {[%clk 0:01:53.3]} 21... Rd3 {[%clk 0:01:37.5]} 22.
Nb3 {[%clk 0:01:45.8]} 22... Qd6 {[%clk 0:01:27.3]} 23. Nc1 {[%clk 0:01:30.6]}
23... Rd2 {[%clk 0:01:26.3]} 24. Qb1 {[%clk 0:01:24.7]} 24... Qf6 {[%clk
0:01:05.3]} 25. Rf1 {[%clk 0:01:22.2]} 25... Ba6 {[%clk 0:01:04.6]} 26. Nb3
{[%clk 0:01:13.6]} 26... Re2 {[%clk 0:00:38]} 27. Qd1 {[%clk 0:00:56.6]} 27...
Rxb2 {[%clk 0:00:29.7]} 28. Qd7 {[%clk 0:00:47.9]} 28... Bxf1 {[%clk 0:00:23.9]}
29. Kxf1 {[%clk 0:00:44.3]} 29... Qxf2# {[%clk 0:00:22.7]} 0-1

[Event "Betsys MČR v online bleskovém šachu 2021"]
[Site "Chess.com"]
[Date "2021.04.17"]
[Round "2"]
[White "ghostdog777"]
[Black "TTCZ"]
[Result "1-0"]
[WhiteElo "2133"]
[BlackElo "1480"]
[TimeControl "180+1"]
[EndTime "9:16:32 PDT"]
[Termination "Uživatel ghostdog777 zvítězil matem"]

1. e4 {[%clk 0:02:57]} 1... e6 {[%clk 0:02:58.4]} 2. d4 {[%clk 0:02:56.2]} 2...
d5 {[%clk 0:02:58.7]} 3. Nc3 {[%clk 0:02:57.1]} 3... Nf6 {[%clk 0:02:57.9]} 4.
Bg5 {[%clk 0:02:52.4]} 4... Be7 {[%clk 0:02:57.5]} 5. e5 {[%clk 0:02:52.5]} 5...
Nfd7 {[%clk 0:02:57.5]} 6. h4 {[%clk 0:02:53]} 6... Bxg5 {[%clk 0:02:55.9]} 7.
hxg5 {[%clk 0:02:53.2]} 7... Qxg5 {[%clk 0:02:55.5]} 8. Nh3 {[%clk 0:02:53.2]}
8... Qe7 {[%clk 0:02:48]} 9. Qg4 {[%clk 0:02:50.3]} 9... f6 {[%clk 0:02:41.4]}
10. f4 {[%clk 0:02:46.9]} 10... f5 {[%clk 0:02:35.4]} 11. Qg3 {[%clk 0:02:45.1]}
11... Nc6 {[%clk 0:02:32.4]} 12. O-O-O {[%clk 0:02:44.3]} 12... Nb6 {[%clk
0:02:30]} 13. Ng5 {[%clk 0:02:43.2]} 13... h6 {[%clk 0:02:26.3]} 14. Be2 {[%clk
0:02:42.9]} 14... Bd7 {[%clk 0:02:24.9]} 15. Bh5+ {[%clk 0:02:42.7]} 15... Kd8
{[%clk 0:02:23.4]} 16. Nf7+ {[%clk 0:02:42.5]} 16... Kc8 {[%clk 0:02:20]} 17.
Nxh8 {[%clk 0:02:20.8]} 17... Nc4 {[%clk 0:02:11.9]} 18. Be2 {[%clk 0:02:07.6]}
18... N6a5 {[%clk 0:02:06.8]} 19. Bxc4 {[%clk 0:01:40.3]} 19... Nxc4 {[%clk
0:02:04.3]} 20. Rd3 {[%clk 0:01:39.3]} 20... Qb4 {[%clk 0:02:02.6]} 21. Nd1
{[%clk 0:01:39.2]} 21... Bb5 {[%clk 0:01:58.6]} 22. a3 {[%clk 0:01:38.3]} 22...
Qa4 {[%clk 0:01:44.5]} 23. Rc3 {[%clk 0:01:32.2]} 23... Qa6 {[%clk 0:00:45.5]}
24. Qxg7 {[%clk 0:01:23.1]} 24... b6 {[%clk 0:00:26.2]} 25. Rxh6 {[%clk
0:01:20.6]} 25... Kb7 {[%clk 0:00:21.2]} 26. Rh7 {[%clk 0:01:19.6]} 26... Rc8
{[%clk 0:00:16.2]} 27. Nf7 {[%clk 0:01:17.7]} 27... Nxb2 {[%clk 0:00:11.4]} 28.
Kxb2 {[%clk 0:01:09.7]} 28... Qa5 {[%clk 0:00:08.6]} 29. Nd6+ {[%clk 0:01:06.1]}
29... Kb8 {[%clk 0:00:04.2]} 30. Nxc8 {[%clk 0:01:05.2]} 30... Kxc8 {[%clk
0:00:03.9]} 31. Qxc7# {[%clk 0:01:04.7]} 1-0

[Event "Betsys MČR v online bleskovém šachu 2021"]
[Site "Chess.com"]
[Date "2021.04.17"]
[Round "2"]
[White "Figo5144"]
[Black "RomanHlavicka"]
[Result "0-1"]
[WhiteElo "569"]
[BlackElo "1517"]
[TimeControl "180+1"]
[EndTime "9:16:32 PDT"]
[Termination "Uživatel RomanHlavicka zvítězil matem"]

1. e4 {[%clk 0:03:00.9]} 1... c5 {[%clk 0:02:59]} 2. c4 {[%clk 0:03:00]} 2...
Nc6 {[%clk 0:02:58.7]} 3. Nc3 {[%clk 0:02:59.1]} 3... d6 {[%clk 0:02:58.4]} 4.
Nf3 {[%clk 0:02:57.7]} 4... Nf6 {[%clk 0:02:56.3]} 5. Be2 {[%clk 0:02:54.4]}
5... Bg4 {[%clk 0:02:55.9]} 6. d3 {[%clk 0:02:52.4]} 6... e6 {[%clk 0:02:54.9]}
7. O-O {[%clk 0:02:49.2]} 7... Be7 {[%clk 0:02:55.4]} 8. Bg5 {[%clk 0:02:44.9]}
8... O-O {[%clk 0:02:54.1]} 9. h3 {[%clk 0:02:44.5]} 9... Bxf3 {[%clk
0:02:51.1]} 10. Bxf3 {[%clk 0:02:43.8]} 10... a6 {[%clk 0:02:49.1]} 11. a3
{[%clk 0:02:43.6]} 11... Rc8 {[%clk 0:02:47.1]} 12. Qe2 {[%clk 0:02:42.4]} 12...
Nd4 {[%clk 0:02:45.5]} 13. Qd2 {[%clk 0:02:37.4]} 13... Nxf3+ {[%clk 0:02:41.4]}
14. gxf3 {[%clk 0:02:37.4]} 14... Nd7 {[%clk 0:02:38.6]} 15. Be3 {[%clk
0:02:35.3]} 15... h6 {[%clk 0:02:33.1]} 16. Rfe1 {[%clk 0:02:34.3]} 16... Bg5
{[%clk 0:02:32.4]} 17. f4 {[%clk 0:02:32.7]} 17... Bh4 {[%clk 0:02:27.7]} 18.
Kf1 {[%clk 0:02:26.8]} 18... Nb6 {[%clk 0:02:05.7]} 19. Ke2 {[%clk 0:02:25.2]}
19... d5 {[%clk 0:02:01.3]} 20. exd5 {[%clk 0:02:11.8]} 20... exd5 {[%clk
0:02:00.9]} 21. Rad1 {[%clk 0:02:01.4]} 21... d4 {[%clk 0:01:59.3]} 22. Ne4
{[%clk 0:01:56.9]} 22... dxe3 {[%clk 0:01:56]} 23. Qxe3 {[%clk 0:01:56.4]} 23...
Re8 {[%clk 0:01:53.2]} 24. Kd2 {[%clk 0:01:50.6]} 24... Nxc4+ {[%clk 0:01:51.8]}
25. Kc3 {[%clk 0:01:45.3]} 25... Nxe3 {[%clk 0:01:51.3]} 26. Rxe3 {[%clk
0:01:44.9]} 26... Qd4+ {[%clk 0:01:44.2]} 27. Kc2 {[%clk 0:01:38.9]} 27... Rcd8
{[%clk 0:01:37.6]} 28. b3 {[%clk 0:01:11.3]} 28... b5 {[%clk 0:01:32.2]} 29. f5
{[%clk 0:01:04.7]} 29... c4 {[%clk 0:01:29.1]} 30. bxc4 {[%clk 0:01:00.9]} 30...
bxc4 {[%clk 0:01:28.6]} 31. dxc4 {[%clk 0:00:55]} 31... Qxd1+ {[%clk 0:01:27.4]}
32. Kc3 {[%clk 0:00:53.1]} 32... Bf6+ {[%clk 0:01:20.9]} 33. Kb4 {[%clk
0:00:50]} 33... Qb1+ {[%clk 0:01:16.4]} 34. Ka5 {[%clk 0:00:44.8]} 34... Re5+
{[%clk 0:01:12.6]} 35. Ka4 {[%clk 0:00:40.3]} 35... Qd1+ {[%clk 0:01:09.1]} 36.
Rb3 {[%clk 0:00:33]} 36... Rb8 {[%clk 0:01:04.9]} 37. Nxf6+ {[%clk 0:00:25.4]}
37... gxf6 {[%clk 0:01:03.3]} 38. f4 {[%clk 0:00:23.6]} 38... Qxb3# {[%clk
0:01:02.6]} 0-1